fUST/lending_fUST_20250527
["ID","MTS","AMOUNT","RATE_DAILY","PERIOD"]
[362523531,1748351433018,-300.0,0.00017313,2]
[362523532,1748351433030,-680.37176339,0.00017316,2]
[362523533,1748351433040,-334.467427,0.00017608,2]
[362523534,1748351433051,-616.64,0.00017721,2]
[362523535,1748351433061,-3880.78247622,0.00017851,2]
[362523568,1748351438329,-2419.93206049,0.00017313,2]
[362523570,1748351438340,-2419.93206049,0.00017313,2]
[362523572,1748351438350,-2419.93206049,0.00017313,2]
[362523574,1748351438361,-2419.93206049,0.00017313,2]
[362523576,1748351438371,-500.0,0.00017313,2]
[362523578,1748351438382,-2419.93206049,0.00017313,2]
[362523580,1748351438392,-500.0,0.00017313,2]
[362523582,1748351438402,-2419.93206049,0.00017313,2]
[362523585,1748351438413,-2419.93206049,0.00017313,2]
[362523587,1748351438425,-602.47875713,0.00017313,2]
[362523590,1748351438438,-1817.45330336,0.00017313,2]
[362523593,1748351438450,-462.31824199,0.00017313,2]
[362523596,1748351438463,-2419.93206049,0.00017313,2]
[362523599,1748351438473,-2419.93206049,0.00017313,2]
[362523602,1748351438483,-500.0,0.00017313,2]
[362523605,1748351438493,-7051.42331288,0.00017851,2]
[362523608,1748351438503,-276.163303,0.0001822,2]
[362523611,1748351438513,-749.72907913,0.00018479,2]
[362523614,1748351438523,-924.96,0.00018527,2]
[362523616,1748351438536,-2933.07380466,0.000189,2]
[362523619,1748351438545,-906.52727349,0.000189,2]
[362523621,1748351438554,-420.0,0.00018904,2]
[362523624,1748351438564,-420.0,0.00018904,2]
[362523626,1748351438574,-152.0,0.00018964,2]
[362523628,1748351438583,-1680.0,0.00018997,2]
[362523630,1748351438593,-346.90667559,0.00019041,2]
[362523632,1748351438602,-2685.9,0.00019041,2]
[362523634,1748351438611,-4606.30037054,0.00019078,2]
[362523636,1748351438622,-2933.07380438,0.00019107,2]
[362523638,1748351438632,-160.0,0.00019163,2]
[362523640,1748351438641,-164.95,0.00019168,3]
[362523642,1748351438650,-494.89,0.00019168,3]
[362523644,1748351438660,-396.68944584,0.00019173,2]
[362523646,1748351438669,-500.0,0.00019173,2]
[362523648,1748351438679,-500.0,0.00019173,2]
[362523650,1748351438691,-500.0,0.00019173,2]
[362523652,1748351438701,-500.0,0.00019173,2]
[362523654,1748351438710,-430.41734371,0.00019178,2]
[362523656,1748351438720,-430.0,0.00019178,2]
[362523658,1748351438730,-430.0,0.00019178,2]
[362523660,1748351438740,-430.0,0.00019178,2]
[362523661,1748351438749,-430.27924497,0.00019178,2]
[362523662,1748351438759,-430.0,0.00019178,2]
[362523663,1748351438768,-431.7247267,0.00019178,2]
[362523664,1748351438781,-370.0,0.00019178,2]
[362523665,1748351438790,-375.95946573,0.00019178,2]
[362523666,1748351438799,-430.0,0.00019178,2]
[362523667,1748351438810,-430.0,0.00019178,2]
[362523668,1748351438819,-423.43900655,0.00019178,2]
[362523669,1748351438829,-277.67708074,0.00019178,2]
[362523670,1748351438839,-477.97749469,0.00019178,2]
[362523671,1748351438848,-372.78547495,0.00019178,2]
[362523672,1748351438858,-430.0,0.00019178,2]
[362523673,1748351438869,-381.04863351,0.00019178,2]
[362523674,1748351438878,-380.25847565,0.00019178,2]
[362523675,1748351438888,-377.32057026,0.00019178,2]
[362523676,1748351438898,-385.53724638,0.00019178,2]
[362523677,1748351438907,-430.0,0.00019178,2]
[362523678,1748351438917,-375.6893857,0.00019178,2]
[362523679,1748351438927,-376.4821443,0.00019178,2]
[362523680,1748351438936,-517.51811563,0.00019178,2]
[362523681,1748351438945,-380.43534274,0.00019178,2]
[362523682,1748351438955,-376.4716147,0.00019178,2]
[362523683,1748351438965,-376.04102151,0.00019178,2]
[362523684,1748351438975,-430.0,0.00019178,2]
[362523685,1748351438984,-430.0,0.00019178,2]
[362523686,1748351438993,-430.16291856,0.00019178,2]
[362523687,1748351439003,-377.09140587,0.00019178,2]
[362523688,1748351439012,-349.44075123,0.00019178,2]
[362523689,1748351439021,-373.87857382,0.00019178,2]
[362523690,1748351439034,-430.72756774,0.00019178,2]
[362523692,1748351439043,-430.0,0.00019178,2]
[362523694,1748351439053,-391.24522056,0.00019178,2]
[362523696,1748351439062,-430.0,0.00019178,2]
[362523698,1748351439071,-430.0,0.00019178,2]
[362523700,1748351439081,-430.0,0.00019178,2]
[362523702,1748351439090,-540.0,0.00019178,2]
[362523704,1748351439099,-430.0,0.00019178,2]
[362523706,1748351439109,-430.0,0.00019178,2]
[362523708,1748351439118,-376.90142656,0.00019178,2]
[362523710,1748351439128,-430.0,0.00019178,2]
[362523712,1748351439137,-434.74442728,0.00019178,2]
[362523714,1748351439148,-378.91041067,0.00019178,2]
[362523716,1748351439157,-165.71200291,0.00019178,2]
[362523718,1748351439167,-376.25679798,0.00019178,2]
[362523720,1748351439176,-362.91297158,0.00019178,2]
[362523722,1748351439186,-324.71540448,0.00019178,2]
[362523724,1748351439195,-385.55296295,0.00019178,2]
[362523726,1748351439205,-374.67780047,0.00019178,2]
[362523728,1748351439214,-477.0742726,0.00019178,2]
[362523730,1748351439223,-430.0,0.00019178,2]
[362523732,1748351439232,-380.65226676,0.00019178,2]
[362523734,1748351439242,-375.05593713,0.00019178,2]
[362523736,1748351439251,-430.0,0.00019178,2]
[362523738,1748351439261,-378.67196231,0.00019178,2]
[362523740,1748351439270,-389.44651425,0.00019178,2]
[362523742,1748351439282,-439.29303697,0.00019178,2]
[362523744,1748351439291,-373.82045172,0.00019178,2]
[362523746,1748351439300,-430.0,0.00019178,2]
[362523748,1748351439310,-430.0,0.00019178,2]
[362523750,1748351439320,-421.88291695,0.00019178,2]
[362523752,1748351439329,-430.0,0.00019178,2]
[362523754,1748351439339,-377.43136849,0.00019178,2]
[362523756,1748351439349,-373.03213656,0.00019178,2]
[362523758,1748351439358,-430.0,0.00019178,2]
[362523760,1748351439368,-376.41168405,0.00019178,2]
[362523762,1748351439378,-430.0,0.00019178,2]
[362523764,1748351439387,-430.0,0.00019178,2]
[362523766,1748351439397,-435.51240739,0.00019178,2]
[362523768,1748351439407,-375.39438031,0.00019178,2]
[362523770,1748351439417,-500.0,0.00019178,2]
[362523772,1748351439426,-375.73418528,0.00019178,2]
[362523774,1748351439436,-461.92186779,0.00019178,2]
[362523776,1748351439445,-430.0,0.00019178,2]
[362523778,1748351439454,-430.0,0.00019178,2]
[362523780,1748351439463,-430.0,0.00019178,2]
[362523782,1748351439473,-430.0,0.00019178,2]
[362523784,1748351439482,-430.0,0.00019178,2]
[362523786,1748351439492,-430.0,0.00019178,2]
[362523788,1748351439501,-431.07690514,0.00019178,2]
[362523790,1748351439511,-430.75564049,0.00019178,2]
[362523792,1748351439520,-430.0,0.00019178,2]
[362523794,1748351439532,-430.0,0.00019178,2]
[362523796,1748351439543,-182.22205189,0.00019178,2]
[362523798,1748351439552,-430.0,0.00019178,2]
[362523800,1748351439562,-380.9513032,0.00019178,2]
[362523802,1748351439572,-430.0,0.00019178,2]
[362523804,1748351439582,-401.16341734,0.00019178,2]
[362523806,1748351439591,-430.0,0.00019178,2]
[362523808,1748351439601,-430.0,0.00019178,2]
[362523810,1748351439612,-430.0,0.00019178,2]
[362523812,1748351439621,-430.0,0.00019178,2]
[362523814,1748351439632,-430.0,0.00019178,2]
[362523817,1748351439641,-430.0,0.00019178,2]
[362523819,1748351439651,-430.0,0.00019178,2]
[362523820,1748351439660,-430.0,0.00019178,2]
[362523822,1748351439669,-430.0,0.00019178,2]
[362523824,1748351439679,-370.0,0.00019178,2]
[362523826,1748351439691,-401.99029895,0.00019178,2]
[362523829,1748351439703,-430.0,0.00019178,2]
[362523830,1748351439712,-430.0,0.00019178,2]
[362523833,1748351439721,-430.0,0.00019178,2]
[362523835,1748351439732,-430.0,0.00019178,2]
[362523837,1748351439743,-430.0,0.00019178,2]
[362523839,1748351439752,-430.0,0.00019178,2]
[362523841,1748351439762,-270.95556483,0.00019178,2]
[362523844,1748351439772,-430.0,0.00019178,2]
[362523846,1748351439786,-1000.0,0.00019178,2]
[362523848,1748351439796,-401.62763383,0.00019178,2]
[362523850,1748351439806,-430.0,0.00019178,2]
[362523852,1748351439815,-430.0,0.00019178,2]
[362523854,1748351439826,-430.0,0.00019178,2]
[362523856,1748351439836,-430.0,0.00019178,2]
[362523858,1748351439847,-430.0,0.00019178,2]
[362523860,1748351439856,-374.0279577,0.00019178,2]
[362523862,1748351439867,-430.0,0.00019178,2]
[362523864,1748351439877,-430.0,0.00019178,2]
[362523866,1748351439887,-430.0,0.00019178,2]
[362523868,1748351439897,-505.58259488,0.00019178,2]
[362523870,1748351439907,-430.0,0.00019178,2]
[362523872,1748351439917,-430.0,0.00019178,2]
[362523874,1748351439927,-430.0,0.00019178,2]
[362523875,1748351439936,-430.0,0.00019178,2]
[362523877,1748351439947,-430.0,0.00019178,2]
[362523879,1748351439958,-430.0,0.00019178,2]
[362523881,1748351439969,-476.41867879,0.00019178,2]
[362523883,1748351439979,-430.0,0.00019178,2]
[362523885,1748351439990,-430.0,0.00019178,2]
[362523887,1748351440000,-430.0,0.00019178,2]
[362523889,1748351440009,-430.0,0.00019178,2]
[362523901,1748351440123,-430.0,0.00019178,2]
[362523903,1748351440133,-430.0,0.00019178,2]
[362523905,1748351440142,-504.86743008,0.00019178,2]
[362523907,1748351440152,-430.0,0.00019178,2]
[362523909,1748351440161,-430.0,0.00019178,2]
[362523911,1748351440171,-430.0,0.00019178,2]
[362523913,1748351440181,-430.0,0.00019178,2]
[362523915,1748351440190,-430.0,0.00019178,2]
[362523917,1748351440199,-430.0,0.00019178,2]
[362523919,1748351440210,-430.0,0.00019178,2]
[362523921,1748351440219,-430.0,0.00019178,2]
[362523923,1748351440228,-430.0,0.00019178,2]
[362523925,1748351440238,-430.0,0.00019178,2]
[362523927,1748351440247,-430.0,0.00019178,2]
[362523929,1748351440257,-430.0,0.00019178,2]
[362523931,1748351440266,-400.0,0.00019178,2]
[362523933,1748351440275,-400.0,0.00019178,2]
[362523935,1748351440288,-430.0,0.00019178,2]
[362523936,1748351440297,-430.0,0.00019178,2]
[362523938,1748351440306,-430.0,0.00019178,2]
[362523940,1748351440315,-503.30978917,0.00019178,2]
[362523942,1748351440325,-430.0,0.00019178,2]
[362523944,1748351440335,-290.29677932,0.00019178,2]
[362523946,1748351440345,-228.13849746,0.00019178,2]
[362523948,1748351440354,-430.0,0.00019178,2]
[362523950,1748351440364,-430.0,0.00019178,2]
[362523952,1748351440374,-376.0249121,0.00019178,2]
[362523954,1748351440384,-500.0,0.00019178,2]
[362523956,1748351440393,-430.0,0.00019178,2]
[362523958,1748351440403,-500.0,0.00019178,2]
[362523960,1748351440413,-500.0,0.00019178,2]
[362523962,1748351440423,-500.0,0.00019178,2]
[362523964,1748351440432,-430.0,0.00019178,2]
[362523966,1748351440442,-500.0,0.00019178,2]
[362523968,1748351440452,-500.0,0.00019178,2]
[362523970,1748351440462,-430.0,0.00019178,2]
[362523972,1748351440471,-500.0,0.00019178,2]
[362523974,1748351440482,-500.0,0.00019178,2]
[362523976,1748351440492,-582.06435634,0.00019178,2]
[362523978,1748351440502,-430.0,0.00019178,2]
[362523980,1748351440512,-430.0,0.00019178,2]
[362523982,1748351440522,-1036.53709069,0.00019178,2]
[362523984,1748351440539,-430.0,0.00019178,2]
[362523986,1748351440550,-430.0,0.00019178,2]
[362523988,1748351440560,-430.22767306,0.00019178,2]
[362523990,1748351440570,-430.0,0.00019178,2]
[362523992,1748351440579,-430.0,0.00019178,2]
[362523994,1748351440589,-354.94312132,0.00019178,2]
[362523996,1748351440599,-430.0,0.00019178,2]
[362523998,1748351440610,-400.0,0.00019178,2]
[362524000,1748351440620,-430.0,0.00019178,2]
[362524002,1748351440630,-430.0,0.00019178,2]
[362524004,1748351440639,-430.0,0.00019178,2]
[362524006,1748351440648,-430.0,0.00019178,2]
[362524008,1748351440657,-258.17688479,0.00019178,2]
[362524010,1748351440667,-430.0,0.00019178,2]
[362524012,1748351440677,-466.81032424,0.00019178,2]
[362524014,1748351440688,-430.0,0.00019178,2]
[362524016,1748351440700,-430.0,0.00019178,2]
[362524018,1748351440710,-430.0,0.00019178,2]
[362524020,1748351440720,-430.0,0.00019178,2]
[362524022,1748351440731,-430.0,0.00019178,2]
[362524024,1748351440740,-430.0,0.00019178,2]
[362524026,1748351440751,-324.08426758,0.00019178,2]
[362524028,1748351440761,-430.0,0.00019178,2]
[362524030,1748351440770,-430.0,0.00019178,2]
[362524032,1748351440783,-430.0,0.00019178,2]
[362524034,1748351440794,-375.86035573,0.00019178,2]
[362524036,1748351440804,-430.0,0.00019178,2]
[362524038,1748351440814,-430.0,0.00019178,2]
[362524040,1748351440825,-430.0,0.00019178,2]
[362524042,1748351440834,-404.7878705,0.00019178,2]
[362524044,1748351440844,-430.0,0.00019178,2]
[362524046,1748351440853,-430.0,0.00019178,2]
[362524048,1748351440863,-430.0,0.00019178,2]
[362524050,1748351440872,-464.27381962,0.00019178,2]
[362524052,1748351440882,-570.26250707,0.00019178,2]
[362524054,1748351440892,-430.0,0.00019178,2]
[362524056,1748351440902,-430.0,0.00019178,2]
[362524058,1748351440911,-430.0,0.00019178,2]
[362524060,1748351440920,-430.0,0.00019178,2]
[362524062,1748351440928,-430.0,0.00019178,2]
[362524064,1748351440937,-400.0,0.00019178,2]
[362524066,1748351440946,-430.0,0.00019178,2]
[362524068,1748351440955,-506.55194656,0.00019178,2]
[362524070,1748351440964,-430.0,0.00019178,2]
[362524072,1748351440972,-512.80987894,0.00019178,2]
[362524074,1748351440981,-430.0,0.00019178,2]
[362524076,1748351440990,-430.0,0.00019178,2]
[362524078,1748351440999,-430.0,0.00019178,2]
[362524080,1748351441008,-430.0,0.00019178,2]
[362524082,1748351441018,-430.0,0.00019178,2]
[362524084,1748351441029,-430.0,0.00019178,2]
[362524086,1748351441039,-430.0,0.00019178,2]
[362524088,1748351441048,-430.0,0.00019178,2]
[362524090,1748351441058,-430.0,0.00019178,2]
[362524092,1748351441075,-430.0,0.00019178,2]
[362524094,1748351441084,-430.0,0.00019178,2]
[362524096,1748351441095,-328.46608704,0.00019178,2]
[362524098,1748351441104,-500.0,0.00019178,2]
[362524100,1748351441113,-430.0,0.00019178,2]
[362524103,1748351441122,-430.0,0.00019178,2]
[362524105,1748351441131,-430.0,0.00019178,2]
[362524107,1748351441141,-430.0,0.00019178,2]
[362524109,1748351441150,-410.27780625,0.00019178,2]
[362524111,1748351441159,-430.0,0.00019178,2]
[362524113,1748351441167,-430.0,0.00019178,2]
[362524115,1748351441176,-430.0,0.00019178,2]
[362524117,1748351441185,-430.0,0.00019178,2]
[362524119,1748351441195,-430.0,0.00019178,2]
[362524121,1748351441205,-319.40366444,0.00019178,2]
[362524123,1748351441215,-430.0,0.00019178,2]
[362524125,1748351441224,-388.99837729,0.00019178,2]
[362524127,1748351441234,-430.0,0.00019178,2]
[362524129,1748351441242,-405.76131767,0.00019178,2]
[362524131,1748351441251,-364.16638328,0.00019178,2]
[362524133,1748351441261,-430.0,0.00019178,2]
[362524135,1748351441270,-430.0,0.00019178,2]
[362524136,1748351441282,-400.0,0.00019178,2]
[362524139,1748351441292,-430.0,0.00019178,2]
[362524141,1748351441302,-554.1186211,0.00019178,2]
[362524143,1748351441312,-359.31344587,0.00019178,2]
[362524144,1748351441321,-430.0,0.00019178,2]
[362524146,1748351441331,-430.0,0.00019178,2]
[362524148,1748351441340,-430.0,0.00019178,2]
[362524150,1748351441351,-430.0,0.00019178,2]
[362524152,1748351441361,-502.72680981,0.00019178,2]
[362524154,1748351441370,-450.00000402,0.00019178,2]
[362524156,1748351441380,-281.88890146,0.00019178,2]
[362524158,1748351441389,-430.0,0.00019178,2]
[362524160,1748351441398,-430.0,0.00019178,2]
[362524162,1748351441408,-430.0,0.00019178,2]
[362524164,1748351441418,-430.0,0.00019178,2]
[362524166,1748351441427,-430.0,0.00019178,2]
[362524168,1748351441437,-430.0,0.00019178,2]
[362524170,1748351441446,-430.0,0.00019178,2]
[362524172,1748351441456,-430.0,0.00019178,2]
[362524174,1748351441465,-572.43916416,0.00019178,2]
[362524176,1748351441474,-430.0,0.00019178,2]
[362524178,1748351441483,-400.0,0.00019178,2]
[362524180,1748351441492,-430.0,0.00019178,2]
[362524182,1748351441500,-430.0,0.00019178,2]
[362524184,1748351441510,-430.0,0.00019178,2]
[362524186,1748351441519,-430.0,0.00019178,2]
[362524188,1748351441530,-430.0,0.00019178,2]
[362524190,1748351441541,-430.0,0.00019178,2]
[362524192,1748351441551,-430.0,0.00019178,2]
[362524194,1748351441560,-430.0,0.00019178,2]
[362524196,1748351441570,-430.0,0.00019178,2]
[362524198,1748351441579,-430.0,0.00019178,2]
[362524200,1748351441588,-430.0,0.00019178,2]
[362524202,1748351441597,-430.0,0.00019178,2]
[362524204,1748351441607,-430.0,0.00019178,2]
[362524206,1748351441616,-430.0,0.00019178,2]
[362524208,1748351441626,-391.82520641,0.00019178,2]
[362524210,1748351441635,-430.0,0.00019178,2]
[362524212,1748351441645,-430.0,0.00019178,2]
[362524214,1748351441655,-491.38910983,0.00019178,2]
[362524216,1748351441665,-374.38126847,0.00019178,2]
[362524218,1748351441675,-430.0,0.00019178,2]
[362524220,1748351441686,-430.0,0.00019178,2]
[362524222,1748351441696,-430.0,0.00019178,2]
[362524223,1748351441714,-382.83281064,0.00019178,2]
[362524225,1748351441724,-430.0,0.00019178,2]
[362524227,1748351441734,-430.0,0.00019178,2]
[362524229,1748351441743,-430.0,0.00019178,2]
[362524231,1748351441752,-430.0,0.00019178,2]
[362524233,1748351441762,-430.0,0.00019178,2]
[362524235,1748351441772,-430.0,0.00019178,2]
[362524237,1748351441784,-430.0,0.00019178,2]
[362524239,1748351441794,-430.0,0.00019178,2]
[362524241,1748351441803,-430.0,0.00019178,2]
[362524243,1748351441813,-430.0,0.00019178,2]
[362524245,1748351441824,-437.37346849,0.00019178,2]
[362524247,1748351441835,-500.0,0.00019178,2]
[362524249,1748351441845,-418.01564813,0.00019178,2]
[362524252,1748351441857,-500.0,0.00019178,2]
[362524254,1748351441867,-500.0,0.00019178,2]
[362524256,1748351441877,-500.0,0.00019178,2]
[362524257,1748351441887,-500.0,0.00019178,2]
[362524259,1748351441897,-500.0,0.00019178,2]
[362524262,1748351441907,-598.29365222,0.00019178,2]
[362524273,1748351441917,-430.0,0.00019178,2]
[362524275,1748351442020,-430.0,0.00019178,2]
[362524277,1748351442032,-496.88159365,0.00019178,2]
[362524279,1748351442043,-430.0,0.00019178,2]
[362524281,1748351442064,-430.0,0.00019178,2]
[362524283,1748351442084,-498.54244994,0.00019178,2]
[362524285,1748351442095,-430.0,0.00019178,2]
[362524287,1748351442106,-430.0,0.00019178,2]
[362524289,1748351442116,-516.66696609,0.00019178,2]
[362524291,1748351442125,-430.0,0.00019178,2]
[362524293,1748351442135,-430.0,0.00019178,2]
[362524295,1748351442144,-430.0,0.00019178,2]
[362524297,1748351442154,-430.0,0.00019178,2]
[362524299,1748351442163,-430.0,0.00019178,2]
[362524301,1748351442173,-430.0,0.00019178,2]
[362524303,1748351442183,-430.0,0.00019178,2]
[362524305,1748351442193,-430.0,0.00019178,2]
[362524307,1748351442203,-516.98823777,0.00019178,2]
[362524309,1748351442213,-430.0,0.00019178,2]
[362524311,1748351442223,-430.0,0.00019178,2]
[362524313,1748351442233,-430.0,0.00019178,2]
[362524315,1748351442243,-430.0,0.00019178,2]
[362524317,1748351442252,-430.0,0.00019178,2]
[362524319,1748351442262,-430.0,0.00019178,2]
[362524321,1748351442272,-384.26838468,0.00019178,2]
[362524323,1748351442284,-430.0,0.00019178,2]
[362524325,1748351442294,-430.0,0.00019178,2]
[362524327,1748351442303,-302.42575276,0.00019178,2]
[362524329,1748351442313,-216.10129984,0.00019178,2]
[362524331,1748351442322,-430.0,0.00019178,2]
[362524333,1748351442332,-362.76924559,0.00019178,2]
[362524335,1748351442342,-430.0,0.00019178,2]
[362524337,1748351442352,-373.50827607,0.00019178,2]
[362524339,1748351442362,-430.0,0.00019178,2]
[362524341,1748351442372,-430.0,0.00019178,2]
[362524342,1748351442381,-430.0,0.00019178,2]
[362524344,1748351442391,-431.5140174,0.00019178,2]
[362524346,1748351442401,-295.0319789,0.00019178,2]
[362524348,1748351442412,-430.0,0.00019178,2]
[362524350,1748351442422,-234.31647222,0.00019178,2]
[362524352,1748351442433,-430.0,0.00019178,2]
[362524354,1748351442443,-430.0,0.00019178,2]
[362524357,1748351442454,-430.0,0.00019178,2]
[362524359,1748351442465,-430.0,0.00019178,2]
[362524361,1748351442479,-430.0,0.00019178,2]
[362524363,1748351442489,-430.0,0.00019178,2]
[362524365,1748351442500,-430.0,0.00019178,2]
[362524367,1748351442512,-430.0,0.00019178,2]
[362524369,1748351442523,-430.0,0.00019178,2]
[362524371,1748351442535,-430.0,0.00019178,2]
[362524373,1748351442545,-430.0,0.00019178,2]
[362524375,1748351442555,-430.0,0.00019178,2]
[362524377,1748351442566,-430.0,0.00019178,2]
[362524379,1748351442576,-430.0,0.00019178,2]
[362524381,1748351442586,-430.0,0.00019178,2]
[362524383,1748351442595,-430.0,0.00019178,2]
[362524385,1748351442605,-430.0,0.00019178,2]
[362524387,1748351442615,-430.0,0.00019178,2]
[362524389,1748351442625,-430.0,0.00019178,2]
[362524391,1748351442635,-430.0,0.00019178,2]
[362524393,1748351442644,-383.81248684,0.00019178,2]
[362524395,1748351442654,-430.0,0.00019178,2]
[362524397,1748351442664,-430.0,0.00019178,2]
[362524399,1748351442673,-430.0,0.00019178,2]
[362524401,1748351442683,-172.01702445,0.00019178,2]
[362524403,1748351442696,-431.70893381,0.00019178,2]
[362524405,1748351442706,-430.0,0.00019178,2]
[362524407,1748351442716,-430.0,0.00019178,2]
[362524409,1748351442727,-546.59860463,0.00019178,2]
[362524411,1748351442738,-430.0,0.00019178,2]
[362524413,1748351442747,-430.0,0.00019178,2]
[362524415,1748351442757,-430.0,0.00019178,2]
[362524417,1748351442766,-430.0,0.00019178,2]
[362524419,1748351442778,-430.0,0.00019178,2]
[362524421,1748351442788,-427.00307512,0.00019178,2]
[362524424,1748351442798,-430.0,0.00019178,2]
[362524427,1748351442808,-430.0,0.00019178,2]
[362524429,1748351442818,-430.0,0.00019178,2]
[362524431,1748351442827,-430.0,0.00019178,2]
[362524433,1748351442837,-430.0,0.00019178,2]
[362524435,1748351442847,-500.24903475,0.00019178,2]
[362524436,1748351442856,-430.0,0.00019178,2]
[362524437,1748351442866,-430.0,0.00019178,2]
[362524438,1748351442876,-430.0,0.00019178,2]
[362524440,1748351442886,-430.0,0.00019178,2]
[362524441,1748351442895,-430.0,0.00019178,2]
[362524442,1748351442904,-430.0,0.00019178,2]
[362524443,1748351442913,-430.0,0.00019178,2]
[362524445,1748351442923,-373.43715074,0.00019178,2]
[362524446,1748351442932,-430.0,0.00019178,2]
[362524447,1748351442942,-430.0,0.00019178,2]
[362524448,1748351442951,-430.0,0.00019178,2]
[362524450,1748351442960,-430.0,0.00019178,2]
[362524452,1748351442970,-430.0,0.00019178,2]
[362524453,1748351442979,-430.0,0.00019178,2]
[362524454,1748351442989,-430.0,0.00019178,2]
[362524455,1748351442999,-430.0,0.00019178,2]
[362524457,1748351443008,-430.0,0.00019178,2]
[362524458,1748351443017,-430.0,0.00019178,2]
[362524459,1748351443028,-443.85118614,0.00019178,2]
[362524460,1748351443042,-298.07873866,0.00019178,2]
[362524462,1748351443051,-431.22536101,0.00019178,2]
[362524464,1748351443066,-430.0,0.00019178,2]
[362524466,1748351443075,-430.0,0.00019178,2]
[362524468,1748351443084,-430.0,0.00019178,2]
[362524470,1748351443094,-159.41329124,0.00019178,2]
[362524472,1748351443103,-430.0,0.00019178,2]
[362524475,1748351443112,-438.51128961,0.00019178,2]
[362524477,1748351443122,-430.0,0.00019178,2]
[362524479,1748351443133,-430.0,0.00019178,2]
[362524481,1748351443142,-430.0,0.00019178,2]
[362524483,1748351443151,-430.0,0.00019178,2]
[362524485,1748351443161,-430.0,0.00019178,2]
[362524487,1748351443171,-430.0,0.00019178,2]
[362524489,1748351443180,-430.0,0.00019178,2]
[362524491,1748351443190,-430.0,0.00019178,2]
[362524493,1748351443200,-430.0,0.00019178,2]
[362524495,1748351443209,-430.0,0.00019178,2]
[362524497,1748351443222,-430.0,0.00019178,2]
[362524499,1748351443244,-412.88230758,0.00019178,2]
[362524501,1748351443257,-430.0,0.00019178,2]
[362524503,1748351443268,-430.0,0.00019178,2]
[362524505,1748351443277,-430.0,0.00019178,2]
[362524507,1748351443294,-430.0,0.00019178,2]
[362524510,1748351443304,-508.79196655,0.00019178,2]
[362524511,1748351443313,-411.62861694,0.00019178,2]
[362524514,1748351443324,-378.41339351,0.00019178,2]
[362524516,1748351443333,-430.0,0.00019178,2]
[362524517,1748351443342,-430.0,0.00019178,2]
[362524519,1748351443352,-430.0,0.00019178,2]
[362524521,1748351443362,-430.0,0.00019178,2]
[362524523,1748351443371,-430.0,0.00019178,2]
[362524526,1748351443382,-430.0,0.00019178,2]
[362524528,1748351443392,-430.0,0.00019178,2]
[362524530,1748351443401,-430.0,0.00019178,2]
[362524532,1748351443411,-409.73085161,0.00019178,2]
[362524534,1748351443420,-430.0,0.00019178,2]
[362524536,1748351443430,-430.0,0.00019178,2]
[362524538,1748351443439,-500.0,0.00019178,2]
[362524540,1748351443448,-500.0,0.00019178,2]
[362524542,1748351443458,-500.0,0.00019178,2]
[362524544,1748351443467,-500.0,0.00019178,2]
[362524546,1748351443477,-500.0,0.00019178,2]